fUST/lending_fUST_20240820
["ID","MTS","AMOUNT","RATE_DAILY","PERIOD"]
[335372867,1724166428404,-212.82878893,0.00016438,2]
[335372868,1724166428427,-500.0,0.00016438,2]
[335372869,1724166428449,-500.0,0.00016438,2]
[335372870,1724166428472,-500.0,0.00016438,2]
[335372871,1724166428496,-500.0,0.00016438,2]
[335372872,1724166428520,-500.0,0.00016438,2]
[335372873,1724166428542,-978.97,0.00016438,2]
[335372874,1724166428566,-500.0,0.00016438,2]
[335372875,1724166428587,-500.7777932,0.00016438,2]
[335372876,1724166428610,-500.0,0.00016438,2]
[335372877,1724166428632,-500.0,0.00016438,2]
[335372878,1724166428658,-500.0,0.00016438,2]
[335372879,1724166428682,-500.0,0.00016438,2]
[335372880,1724166428797,-500.0,0.00016438,2]
[335372881,1724166428841,-500.0,0.00016438,2]
[335372882,1724166428864,-500.0,0.00016438,2]
[335372883,1724166428886,-158.53,0.00016438,2]
[335372884,1724166428912,-500.0,0.00016438,2]
[335372885,1724166428935,-500.0,0.00016438,2]
[335372886,1724166428958,-798.4,0.00016438,2]
[335372887,1724166428980,-500.0,0.00016438,2]
[335372888,1724166429003,-601.44,0.00016438,2]
[335372889,1724166429026,-500.0,0.00016438,2]
[335372890,1724166429049,-267.16998075,0.00016438,2]
[335372891,1724166429072,-279.64672077,0.00016438,2]
[335372892,1724166429093,-500.0,0.00016438,2]
[335372893,1724166429115,-354.18583208,0.00016438,2]
[335372894,1724166429136,-500.0,0.00016438,2]
[335372895,1724166429165,-677.79,0.00016438,2]
[335372896,1724166429188,-436.62837868,0.00016438,2]
[335372897,1724166429214,-500.0,0.00016438,2]
[335372898,1724166429237,-472.89284262,0.00016438,2]
[335372899,1724166429261,-500.0,0.00016438,2]
[335372900,1724166429283,-497.27218882,0.00016438,2]
[335372901,1724166429308,-500.0,0.00016438,2]
[335372902,1724166429330,-500.0,0.00016438,2]
[335372903,1724166429354,-500.0,0.00016438,2]
[335372904,1724166429377,-648.70014127,0.00016438,2]
[335372905,1724166429403,-824.05,0.00016438,2]
[335372906,1724166429425,-500.0,0.00016438,2]
[335372907,1724166429444,-574.57,0.00016438,2]
[335372908,1724166429466,-444.34590189,0.00016438,2]
[335372909,1724166429487,-500.0,0.00016438,2]
[335372910,1724166429511,-1998.47,0.00016438,2]
[335372911,1724166429533,-500.0,0.00016438,2]
[335372912,1724166429556,-500.0,0.00016438,2]
[335372913,1724166429579,-500.0,0.00016438,2]
[335372914,1724166429604,-500.0,0.00016438,2]
[335372915,1724166429626,-1333.55,0.00016438,2]
[335372916,1724166429653,-500.0,0.00016438,2]
[335372917,1724166429675,-500.0,0.00016438,2]
[335372918,1724166429696,-500.0,0.00016438,2]
[335372919,1724166429717,-500.0,0.00016438,2]
[335372920,1724166429740,-500.0,0.00016438,2]
[335372921,1724166429763,-500.0,0.00016438,2]
[335372922,1724166429786,-500.0,0.00016438,2]
[335372923,1724166429810,-500.0,0.00016438,2]
[335372924,1724166429834,-500.0,0.00016438,2]
[335372925,1724166429856,-500.0,0.00016438,2]
[335372926,1724166429878,-500.0,0.00016438,2]
[335372927,1724166429906,-500.0,0.00016438,2]
[335372928,1724166429929,-500.0,0.00016438,2]
[335372929,1724166429954,-500.0,0.00016438,2]
[335372930,1724166429976,-500.0,0.00016438,2]
[335372931,1724166429998,-500.0,0.00016438,2]
[335372932,1724166430020,-500.0,0.00016438,2]
[335372933,1724166430042,-500.0,0.00016438,2]
[335372934,1724166430067,-650.15,0.00016438,2]
[335372935,1724166430088,-726.18,0.00016438,2]
[335372936,1724166430109,-500.0,0.00016438,2]
[335372937,1724166430131,-500.0,0.00016438,2]
[335372938,1724166430157,-500.0,0.00016438,2]
[335372939,1724166430178,-500.0,0.00016438,2]
[335372940,1724166430199,-500.0,0.00016438,2]
[335372941,1724166430221,-3966.33,0.00016438,2]
[335372942,1724166430246,-500.0,0.00016438,2]
[335372943,1724166430266,-637.37,0.00016438,2]
[335372944,1724166430287,-637.71425816,0.00016438,2]
[335372945,1724166430310,-1309.08,0.00016438,2]
[335372946,1724166430331,-500.0,0.00016438,2]
[335372947,1724166430351,-500.0,0.00016438,2]
[335372948,1724166430371,-500.0,0.00016438,2]
[335372949,1724166430391,-500.0,0.00016438,2]
[335372950,1724166430418,-500.0,0.00016438,2]
[335372951,1724166430439,-500.0,0.00016546,2]
[335372952,1724166430460,-500.0,0.00016546,2]
[335372953,1724166430481,-500.0,0.00016711,2]
[335372954,1724166430502,-500.0,0.00016711,2]
[335372955,1724166430526,-500.0,0.00016711,2]
[335372956,1724166430547,-474.9866086,0.00016711,2]
[335372957,1724166430568,-619.64679676,0.00016712,2]
[335372958,1724166430588,-511.30904075,0.00016712,2]
[335372959,1724166430609,-500.0,0.00016712,2]
[335372960,1724166430629,-500.0,0.00016712,2]
[335372961,1724166430654,-500.0,0.00016712,2]
[335372962,1724166430675,-500.0,0.00016712,2]
[335372963,1724166430696,-978.97,0.00016712,2]
[335372964,1724166430716,-500.0,0.00016712,2]
[335372965,1724166430737,-179.99852246,0.00016712,2]
[335372966,1724166430758,-275.97082633,0.00016712,2]
[335372967,1724166430779,-500.0,0.00016712,2]
[335372968,1724166430799,-500.0,0.00016712,2]
[335372969,1724166430821,-229.53,0.00016712,2]
[335372970,1724166430841,-500.0,0.00016712,2]
[335372971,1724166430862,-500.0,0.00016712,2]
[335372972,1724166430884,-798.4,0.00016712,2]
[335372973,1724166430909,-601.44,0.00016712,2]
[335372974,1724166430931,-500.0,0.00016712,2]
[335372975,1724166430952,-677.79,0.00016712,2]
[335372976,1724166430973,-287.49000296,0.00016712,2]
[335372977,1724166430994,-500.0,0.00016712,2]
[335372978,1724166431015,-500.0,0.00016712,2]
[335372979,1724166431035,-500.0,0.00016712,2]
[335372980,1724166431056,-500.0,0.00016712,2]
[335372981,1724166431077,-824.05,0.00016712,2]
[335372982,1724166431098,-500.0,0.00016712,2]
[335372983,1724166431121,-500.0,0.00016712,2]
[335372984,1724166431149,-1998.47,0.00016712,2]
[335372985,1724166431172,-500.0,0.00016712,2]
[335372986,1724166431194,-500.0,0.00016712,2]
[335372987,1724166431218,-500.0,0.00016712,2]
[335372988,1724166431241,-1333.55,0.00016712,2]
[335372989,1724166431263,-500.0,0.00016712,2]
[335372990,1724166431285,-500.0,0.00016712,2]
[335372991,1724166431308,-500.0,0.00016712,2]
[335372992,1724166431332,-172.49134743,0.00016712,2]
[335372993,1724166431355,-450.23678246,0.00016712,2]
[335372994,1724166431379,-500.0,0.00016712,2]
[335372995,1724166431412,-500.0,0.00016712,2]
[335372996,1724166431437,-500.0,0.00016712,2]
[335372997,1724166431461,-500.0,0.00016712,2]
[335372998,1724166431484,-650.15,0.00016712,2]
[335372999,1724166431506,-726.18,0.00016712,2]
[335373000,1724166431529,-500.0,0.00016712,2]
[335373001,1724166431554,-500.0,0.00016712,2]
[335373002,1724166431575,-291.35,0.00016712,2]
[335373003,1724166431606,-500.0,0.00016712,2]
[335373004,1724166431628,-500.0,0.00016712,2]
[335373005,1724166431656,-3966.33,0.00016712,2]
[335373006,1724166431678,-500.0,0.00016712,2]
[335373007,1724166431700,-637.37,0.00016712,2]
[335373008,1724166431724,-1309.08,0.00016712,2]
[335373009,1724166431747,-500.0,0.00016712,2]
[335373010,1724166431771,-500.0,0.00016712,2]
[335373011,1724166431794,-500.0,0.00016712,2]
[335373012,1724166431816,-643.1,0.00016815,2]
[335373013,1724166431943,-188.9,0.00016815,2]
[335373014,1724166431970,-5117.28593988,0.00016921,2]
[335373015,1724166431991,-500.0,0.00016986,2]
[335373016,1724166432013,-559.28927083,0.00016986,2]
[335373017,1724166432035,-500.0,0.00016986,2]
[335373018,1724166432057,-500.0,0.00016986,2]
[335373019,1724166432081,-978.97,0.00016986,2]
[335373020,1724166432103,-500.0,0.00016986,2]
[335373021,1724166432127,-500.0,0.00016986,2]
[335373022,1724166432152,-500.0,0.00016986,2]
[335373023,1724166432173,-500.0,0.00016986,2]
[335373024,1724166432195,-500.0,0.00016986,2]
[335373025,1724166432219,-798.4,0.00016986,2]
[335373026,1724166432243,-601.44,0.00016986,2]
[335373027,1724166432266,-500.0,0.00016986,2]
[335373028,1724166432289,-677.79,0.00016986,2]
[335373029,1724166432312,-500.0,0.00016986,2]
[335373030,1724166432334,-500.0,0.00016986,2]
[335373031,1724166432357,-500.0,0.00016986,2]
[335373032,1724166432380,-500.0,0.00016986,2]
[335373033,1724166432407,-824.05,0.00016986,2]
[335373034,1724166432430,-500.0,0.00016986,2]
[335373035,1724166432452,-500.0,0.00016986,2]
[335373036,1724166432474,-1998.47,0.00016986,2]
[335373037,1724166432495,-500.0,0.00016986,2]
[335373038,1724166432518,-500.0,0.00016986,2]
[335373039,1724166432540,-500.0,0.00016986,2]
[335373040,1724166432561,-1333.55,0.00016986,2]
[335373041,1724166432583,-500.0,0.00016986,2]
[335373042,1724166432605,-500.0,0.00016986,2]
[335373043,1724166432628,-500.0,0.00016986,2]
[335373044,1724166432656,-500.0,0.00016986,2]
[335373045,1724166432683,-500.0,0.00016986,2]
[335373046,1724166432705,-650.15,0.00016986,2]
[335373047,1724166432728,-726.18,0.00016986,2]
[335373048,1724166432750,-500.0,0.00016986,2]
[335373049,1724166432773,-579.37597392,0.00016986,2]
[335373050,1724166432796,-500.0,0.00016986,2]
[335373051,1724166432820,-3966.33,0.00016986,2]
[335373052,1724166432842,-500.0,0.00016986,2]
[335373053,1724166432865,-637.37,0.00016986,2]
[335373054,1724166432889,-1309.08,0.00016986,2]
[335373055,1724166432919,-500.0,0.00016986,2]
[335373056,1724166432941,-500.0,0.00016986,2]
[335373057,1724166432962,-500.0,0.00016986,2]
[335373058,1724166432986,-3112.40011007,0.00017042,2]
[335373059,1724166433008,-5117.28593988,0.0001705,2]
[335373060,1724166433031,-486.31595418,0.00017241,2]
[335373061,1724166433052,-500.0,0.0001726,2]
[335373062,1724166433075,-500.0,0.0001726,2]
[335373063,1724166433100,-297.32166584,0.0001726,2]
[335373064,1724166433123,-978.97,0.0001726,2]
[335373065,1724166433146,-500.0,0.0001726,2]
[335373066,1724166433167,-500.0,0.0001726,2]
[335373067,1724166433190,-500.0,0.0001726,2]
[335373068,1724166433212,-500.0,0.0001726,2]
[335373069,1724166433237,-500.0,0.0001726,2]
[335373070,1724166433260,-798.4,0.0001726,2]
[335373071,1724166433284,-601.44,0.0001726,2]
[335373072,1724166433309,-500.0,0.0001726,2]
[335373073,1724166433334,-677.79,0.0001726,2]
[335373074,1724166433359,-500.0,0.0001726,2]
[335373075,1724166433383,-500.0,0.0001726,2]
[335373076,1724166433408,-500.0,0.0001726,2]
[335373077,1724166433430,-500.0,0.0001726,2]
[335373078,1724166433452,-824.05,0.0001726,2]
[335373079,1724166433473,-500.0,0.0001726,2]
[335373080,1724166433496,-97.97425885,0.0001726,2]
[335373081,1724166433776,-2166.4854483,0.00012629,2]
[335373082,1724166433796,-218.51615349,0.00012779,2]
[335373083,1724166433817,-1613.61724275,0.00012779,2]
[335373084,1724166433836,-200.0,0.00012973,2]
[335373085,1724166433856,-154.76012181,0.00013688,2]
[335373086,1724166433877,-534.91146023,0.00013688,2]
[335373087,1724166433904,-300.0637,0.00014342,2]
[335373088,1724166433924,-154.66746495,0.00014519,2]
[335373089,1724166433944,-500.0,0.00016438,2]
[335373090,1724166433964,-588.1015893,0.00016712,2]
[335373091,1724166433985,-500.0,0.00016712,2]
[335373092,1724166434005,-500.0,0.00016986,2]
[335373093,1724166434025,-402.02574115,0.0001726,2]
[335373094,1724166434045,-1998.47,0.0001726,2]
[335373095,1724166434066,-378.41209702,0.0001726,2]
[335373096,1724166434216,-7014.13255051,0.00012551,2]
[335373097,1724166434238,-11142.60680549,0.00013971,2]
[335373098,1724166436098,-31273.30404044,0.00013971,2]
[335373099,1724166436123,-500.0,0.00016438,2]
[335373100,1724166436145,-500.0,0.00016438,2]
[335373101,1724166436169,-500.0,0.00016438,2]
[335373102,1724166436190,-500.0,0.00016438,2]
[335373103,1724166436212,-500.0,0.00016712,2]
[335373104,1724166436338,-500.0,0.00016712,2]
[335373105,1724166436361,-500.0,0.00016712,2]
[335373106,1724166436385,-500.0,0.00016712,2]
[335373107,1724166436412,-500.0,0.00016986,2]
[335373108,1724166436434,-500.0,0.00016986,2]
[335373109,1724166436456,-176.13269102,0.0001726,2]
[335373110,1724166436478,-500.0,0.0001726,2]
[335373111,1724166436501,-500.0,0.0001726,2]
[335373112,1724166436523,-1333.55,0.0001726,2]
[335373113,1724166436547,-500.0,0.0001726,2]
[335373114,1724166436569,-500.0,0.0001726,2]
[335373115,1724166436590,-500.0,0.0001726,2]
[335373116,1724166436612,-500.0,0.0001726,2]
[335373117,1724166436635,-500.0,0.0001726,2]
[335373118,1724166436659,-650.15,0.0001726,2]
[335373119,1724166436679,-726.18,0.0001726,2]
[335373120,1724166436699,-500.0,0.0001726,2]
[335373121,1724166436719,-500.0,0.0001726,2]
[335373122,1724166436740,-3966.33,0.0001726,2]
[335373123,1724166436760,-637.37,0.0001726,2]
[335373124,1724166436781,-1309.08,0.0001726,2]
[335373125,1724166436801,-406.73689988,0.0001726,2]
[335373126,1724166436822,-266.7120858,0.0001726,2]
[335373127,1724166436842,-500.0,0.0001726,2]
[335373128,1724166436862,-500.0,0.0001726,2]
[335373129,1724166436884,-174.492612,0.00017309,2]
[335373130,1724166436911,-171.493407,0.00017309,2]
[335373131,1724166436932,-168.584173,0.00017309,2]
[335373132,1724166436953,-166.332644,0.00017309,2]
[335373133,1724166436974,-171.493404,0.00017309,2]
[335373134,1724166436997,-171.493404,0.00017309,2]
[335373135,1724166437018,-174.492611,0.00017309,2]
[335373136,1724166437039,-166.332645,0.00017309,2]
[335373137,1724166437062,-171.493404,0.00017309,2]
[335373138,1724166437084,-174.492611,0.00017309,2]
[335373139,1724166437108,-168.584172,0.00017309,2]
[335373140,1724166437132,-1152.0,0.00017336,2]
[335373141,1724166437156,-200.0,0.00017342,2]
[335373142,1724166437178,-300.0,0.000175,7]
[335373143,1724166437199,-5117.28593988,0.00017512,2]
[335373144,1724166437225,-500.0,0.00017534,2]
[335373145,1724166437250,-500.0,0.00017534,2]
[335373146,1724166437275,-978.97,0.00017534,2]
[335373147,1724166437296,-608.86644204,0.00017534,2]
[335373148,1724166437318,-500.0,0.00017534,2]
[335373149,1724166437340,-500.0,0.00017534,2]
[335373150,1724166437361,-500.0,0.00017534,2]
[335373151,1724166437381,-500.0,0.00017534,2]
[335373152,1724166437404,-601.44,0.00017534,2]
[335373153,1724166437423,-500.0,0.00017534,2]
[335373154,1724166437444,-677.79,0.00017534,2]
[335373155,1724166437465,-500.0,0.00017534,2]
[335373156,1724166437487,-406.80250803,0.00017534,2]
[335373157,1724166437511,-824.05,0.00017534,2]
[335373158,1724166437532,-500.0,0.00017534,2]
[335373159,1724166437554,-500.0,0.00017534,2]
[335373160,1724166437575,-1998.47,0.00017534,2]
[335373161,1724166437597,-500.0,0.00017534,2]
[335373162,1724166437619,-500.0,0.00017534,2]
[335373163,1724166437641,-1333.55,0.00017534,2]
[335373164,1724166437667,-500.0,0.00017534,2]
[335373165,1724166437688,-500.0,0.00017534,2]
[335373166,1724166437710,-537.10252462,0.00017534,2]
[335373167,1724166437739,-500.0,0.00017534,2]
[335373168,1724166437770,-500.0,0.00017534,2]
[335373169,1724166437799,-650.15,0.00017534,2]
[335373170,1724166437823,-726.18,0.00017534,2]
[335373171,1724166437850,-500.0,0.00017534,2]
[335373172,1724166437879,-500.0,0.00017534,2]
[335373173,1724166437915,-3966.33,0.00017534,2]
[335373174,1724166437942,-637.37,0.00017534,2]
[335373175,1724166437970,-1309.08,0.00017534,2]
[335373176,1724166437997,-500.0,0.00017534,2]
[335373177,1724166438021,-5117.28593988,0.0001755,2]
[335373178,1724166438048,-166.332644,0.00017742,2]
[335373179,1724166438074,-643.1,0.0001775,2]
[335373180,1724166438100,-188.9,0.0001775,2]
[335373181,1724166438125,-547.5445542,0.00017808,2]
[335373182,1724166438151,-500.0,0.00017808,2]
[335373183,1724166438178,-978.97,0.00017808,2]
[335373184,1724166438205,-500.0,0.00017808,2]
[335373185,1724166438246,-500.0,0.00017808,2]
[335373186,1724166438286,-500.0,0.00017808,2]
[335373187,1724166438317,-500.0,0.00017808,2]
[335373188,1724166438344,-601.44,0.00017808,2]
[335373189,1724166438370,-500.0,0.00017808,2]
[335373190,1724166438401,-677.79,0.00017808,2]
[335373191,1724166438433,-500.0,0.00017808,2]
[335373192,1724166438460,-824.05,0.00017808,2]
[335373193,1724166438489,-500.0,0.00017808,2]
[335373194,1724166438517,-500.0,0.00017808,2]
[335373195,1724166438547,-1998.47,0.00017808,2]
[335373196,1724166438576,-500.0,0.00017808,2]
[335373197,1724166438603,-500.0,0.00017808,2]
[335373198,1724166438629,-1333.55,0.00017808,2]
[335373199,1724166438661,-500.0,0.00017808,2]
[335373200,1724166438689,-500.0,0.00017808,2]
[335373201,1724166438721,-500.0,0.00017808,2]
[335373202,1724166438749,-500.0,0.00017808,2]
[335373203,1724166438778,-650.15,0.00017808,2]
[335373204,1724166438806,-726.18,0.00017808,2]
[335373205,1724166438833,-500.0,0.00017808,2]
[335373206,1724166438859,-500.0,0.00017808,2]
[335373207,1724166438887,-3966.33,0.00017808,2]
[335373208,1724166438918,-637.37,0.00017808,2]
[335373209,1724166438946,-1309.08,0.00017808,2]
[335373210,1724166438975,-500.0,0.00017808,2]
[335373211,1724166439001,-251.210559,0.00017808,2]
[335373212,1724166439026,-5117.28593988,0.00017978,2]
[335373213,1724166439050,-500.0,0.00018082,2]
[335373214,1724166439075,-978.97,0.00018082,2]
[335373215,1724166439099,-500.0,0.00018082,2]
[335373216,1724166439130,-500.0,0.00018082,2]
[335373217,1724166439162,-500.0,0.00018082,2]
[335373218,1724166439189,-500.0,0.00018082,2]
[335373219,1724166439218,-601.44,0.00018082,2]
[335373220,1724166439247,-500.0,0.00018082,2]
[335373221,1724166439272,-677.79,0.00018082,2]
[335373222,1724166439295,-500.0,0.00018082,2]
[335373223,1724166439317,-824.05,0.00018082,2]
[335373224,1724166439341,-500.0,0.00018082,2]
[335373225,1724166439363,-500.0,0.00018082,2]
[335373226,1724166439387,-1998.47,0.00018082,2]
[335373227,1724166439585,-500.0,0.00018082,2]
[335373228,1724166439618,-500.0,0.00018082,2]
[335373229,1724166439642,-1333.55,0.00018082,2]
[335373230,1724166439670,-500.0,0.00018082,2]
[335373231,1724166439693,-500.0,0.00018082,2]
[335373232,1724166439714,-500.0,0.00018082,2]
[335373233,1724166439739,-500.0,0.00018082,2]
[335373234,1724166439762,-650.15,0.00018082,2]
[335373235,1724166439784,-726.18,0.00018082,2]
[335373236,1724166439807,-500.0,0.00018082,2]
[335373237,1724166439829,-500.0,0.00018082,2]
[335373238,1724166439854,-3966.33,0.00018082,2]
[335373239,1724166439878,-637.37,0.00018082,2]
[335373240,1724166439906,-1309.08,0.00018082,2]
[335373241,1724166439930,-353.88,0.00018082,2]
[335373242,1724166439953,-150.112233,0.000181,2]
[335373243,1724166439976,-1400.0,0.00018113,2]
[335373244,1724166439997,-800.0,0.00018119,2]
[335373245,1724166440018,-500.0,0.00018125,2]
[335373246,1724166440042,-1400.0,0.00018154,2]
[335373247,1724166440063,-166.332644,0.00018175,2]
[335373248,1724166440087,-800.0,0.00018176,2]
[335373249,1724166440109,-7712.46483926,0.00018176,2]
[335373250,1724166440131,-2000.0,0.00018185,2]
[335373251,1724166440152,-1400.0,0.00018196,2]
[335373252,1724166440178,-1400.0,0.00018238,2]
[335373253,1724166440201,-1400.0,0.00018272,2]
[335373254,1724166440228,-500.0,0.00018283,2]
[335373255,1724166440250,-1400.0,0.00018285,2]
[335373256,1724166440273,-5117.28593988,0.00018316,2]
[335373257,1724166440297,-2000.0,0.00018334,2]
[335373258,1724166440322,-500.0,0.0001834,2]
[335373259,1724166440344,-500.0,0.00018356,2]
[335373260,1724166440367,-978.97,0.00018356,2]
[335373261,1724166440389,-500.0,0.00018356,2]
[335373262,1724166440413,-500.0,0.00018356,2]
[335373263,1724166440435,-500.0,0.00018356,2]
[335373264,1724166440458,-500.0,0.00018356,2]
[335373265,1724166440481,-601.44,0.00018356,2]
[335373266,1724166440503,-500.0,0.00018356,2]
[335373267,1724166440526,-677.79,0.00018356,2]
[335373268,1724166440548,-500.0,0.00018356,2]
[335373269,1724166440572,-824.05,0.00018356,2]
[335373270,1724166440594,-500.0,0.00018356,2]
[335373271,1724166440617,-500.0,0.00018356,2]
[335373272,1724166440640,-1998.47,0.00018356,2]
[335373273,1724166440667,-500.0,0.00018356,2]
[335373274,1724166440689,-500.0,0.00018356,2]
[335373275,1724166440709,-1333.55,0.00018356,2]
[335373276,1724166440741,-500.0,0.00018356,2]
[335373277,1724166440771,-500.0,0.00018356,2]
[335373278,1724166440794,-500.0,0.00018356,2]
[335373279,1724166440817,-578.91004952,0.00018356,2]
[335373280,1724166440841,-650.15,0.00018356,2]
[335373281,1724166440864,-726.18,0.00018356,2]
[335373282,1724166440893,-500.0,0.00018356,2]
[335373283,1724166440920,-500.0,0.00018356,2]
[335373284,1724166440943,-3966.33,0.00018356,2]
[335373285,1724166440964,-637.37,0.00018356,2]
[335373286,1724166440989,-1309.08,0.00018356,2]
[335373287,1724166441011,-978.05340676,0.000184,2]
[335373288,1724166441034,-1400.0,0.00018414,2]
[335373289,1724166441057,-500.0,0.0001844,2]
[335373290,1724166441081,-3112.40011007,0.00018457,2]
[335373291,1724166441104,-5117.28593988,0.00018469,2]
[335373292,1724166441130,-2000.0,0.00018494,2]
[335373293,1724166441159,-150.112233,0.000185,2]
[335373294,1724166441181,-500.0,0.00018507,2]
[335373295,1724166441207,-685.7699121,0.00018522,2]
[335373296,1724166441232,-800.0,0.00018557,2]
[335373297,1724166441253,-158.76411183,0.00018582,2]
[335373298,1724166441277,-1400.0,0.00018595,2]
[335373299,1724166441300,-800.0,0.00018606,2]
[335373300,1724166441328,-500.0,0.0001863,2]
[335373301,1724166441354,-978.97,0.0001863,2]
[335373302,1724166441377,-500.0,0.0001863,2]
[335373303,1724166441404,-500.0,0.0001863,2]
[335373304,1724166441428,-285.2043303,0.0001863,2]
[335373305,1724166441450,-500.0,0.0001863,2]
[335373306,1724166441475,-601.44,0.0001863,2]
[335373307,1724166441499,-500.0,0.0001863,2]
[335373308,1724166441524,-677.79,0.0001863,2]
[335373309,1724166441548,-500.0,0.0001863,2]
[335373310,1724166441572,-824.05,0.0001863,2]
[335373311,1724166441594,-500.0,0.0001863,2]
[335373312,1724166441617,-500.0,0.0001863,2]
[335373313,1724166441639,-1998.47,0.0001863,2]
[335373314,1724166441664,-500.0,0.0001863,2]
[335373315,1724166441692,-500.0,0.0001863,2]
[335373316,1724166441714,-1333.55,0.0001863,2]
[335373317,1724166441737,-500.0,0.0001863,2]
[335373318,1724166441759,-500.0,0.0001863,2]
[335373319,1724166441782,-500.0,0.0001863,2]
[335373320,1724166441803,-650.15,0.0001863,2]
[335373321,1724166441825,-726.18,0.0001863,2]
[335373322,1724166441847,-500.0,0.0001863,2]
[335373323,1724166441870,-500.0,0.0001863,2]
[335373324,1724166441894,-3966.33,0.0001863,2]
[335373325,1724166441917,-637.37,0.0001863,2]
[335373326,1724166441942,-1309.08,0.0001863,2]
[335373327,1724166441963,-500.0,0.00018637,2]
[335373328,1724166441984,-500.0,0.0001864,2]
[335373329,1724166442007,-2000.0,0.0001865,2]
[335373330,1724166442032,-2000.0,0.00018669,2]
[335373331,1724166442055,-800.0,0.00018673,2]
[335373332,1724166442077,-643.1,0.00018685,2]
[335373333,1724166442099,-188.9,0.00018685,2]
[335373334,1724166442121,-400.0,0.00018712,2]
[335373335,1724166442143,-1400.0,0.00018778,2]
[335373336,1724166442169,-500.0,0.0001882,2]
[335373337,1724166442192,-2000.0,0.0001883,2]
[335373338,1724166442219,-2000.0,0.00018831,2]
[335373339,1724166442240,-5117.28593988,0.00018846,2]
[335373340,1724166442262,-500.0,0.00018859,2]
[335373341,1724166442284,-499.08910352,0.00018882,2]
[335373342,1724166442308,-500.0,0.00018904,2]
[335373343,1724166442329,-978.97,0.00018904,2]
[335373344,1724166442350,-500.0,0.00018904,2]
[335373345,1724166442372,-500.0,0.00018904,2]
[335373346,1724166442393,-500.0,0.00018904,2]
[335373347,1724166442423,-601.44,0.00018904,2]
[335373348,1724166442445,-500.0,0.00018904,2]
[335373349,1724166442468,-677.79,0.00018904,2]
[335373350,1724166442489,-500.0,0.00018904,2]
[335373351,1724166442511,-824.05,0.00018904,2]
[335373352,1724166442532,-500.0,0.00018904,2]
[335373353,1724166442553,-500.0,0.00018904,2]
[335373354,1724166442574,-1998.47,0.00018904,2]
[335373355,1724166442596,-500.0,0.00018904,2]
[335373356,1724166442618,-500.0,0.00018904,2]
[335373357,1724166442639,-1333.55,0.00018904,2]
[335373358,1724166442666,-500.0,0.00018904,2]
[335373359,1724166442687,-500.0,0.00018904,2]
[335373360,1724166442709,-500.0,0.00018904,2]
[335373361,1724166442730,-650.15,0.00018904,2]
[335373362,1724166442752,-726.18,0.00018904,2]
[335373363,1724166442774,-500.0,0.00018904,2]
[335373364,1724166442796,-500.0,0.00018904,2]
[335373365,1724166442818,-3966.33,0.00018904,2]
[335373366,1724166442838,-637.37,0.00018904,2]